Workbook

Sheet ~#temp (hidden)

Sheet Centre Heave
A1: Residential Footing Design - Mitchell Method (1984) (V20171106) | I1: JRB STRUCTURAL ENGINEERING PTY LTD | J1: Notes:
J2: click "Re-Calculate" after making any changed to inputs
A3: Centre Heave - Inputs
B6: x = | C6: 3.5125 | D6: m | I6: distance from centre of footing (0<x<L/2) - Nominal | J6: Designer can input any valid value for x to calculate moment at any given point | Q6: 4.225 | R6: 3
B7: L = | C7: 12 | D7: m | I7: overall length of footing | Q7: 14.05 | R7: 12
B8: B = | C8: 1 | D8: m | E8: =IF(rng_B<>1,"usually take B equals 1m","") ->  | I8: take unit width of footing | Q8: 1 | R8: 1
B9: W = | C9: 10 | D9: kN/m | I9: edge line load applied to footing | Q9: 30 | R9: 10
B10: T = | C10: 0 | D10: kN/m | I10: centre line load applied to footing | Q10: 30 | R10: 0
B11: w = | C11: 6.5 | D11: kPa | I11: uniform load applied to footing | Q11: 3 | R11: 6.5
B12: Y = | C12: 0.075 | D12: m | I12: free soil heave | Q12: 0.02 | R12: 0.075
B13: Δ = | C13: 0.012 | D13: m | I13: design deflection limit | J13: A solution may not be possible with D approaches the value of Y | K13: =(C19)/(C15*(C12*10^-3)) -> 108.8888889 | Q13: 0.007 | R13: 0.012
B14: m = | C14: 5 | I14: exponent (refer AS2870) | Q14: 21 | R14: 5
B15: k = | C15: 1000 | D15: kPa/m | I15: modulus of subgrade reaction | Q15: 2500 | R15: 1000
A17: Centre Heave - Calculations
B19: ω = | C19: =rng_w_small+(2*rng_W_big+rng_Tload)/rng_L -> 8.166666667 | I19: uniform pressure
B20: t = | C20: 1.740717394 | I20: solved numerically at x=L/4
B21: C = | C21: 0.7557392019 | D21: =IF(rng_C<0,"Warning: negative value for C","") ->  | I21: solved numerically at x=L/4
B22: fC = | C22: =C21^(C14+1)*C14/(C14+1)-C21^(C20+1)*C20/(C20+1)*(C13/C12)-C19/(C15*C12) -> -0.0007988934199 | I22: equaction to solve for "C"
B24: δο= | C24: =C21^C14*C12-C21^C20*C13 -> 0.01111943026
B25: Mx = | C25: =C9*C8*(C7/2-C6)+(C11*C8/2)*(C7/2-C6)^2 -> 44.98488281 | I25: CL/2<x<L/2
B26: CL= | C26: =C21*C7 -> 9.068870422 | I26: Total length of slab in contact with ground
B28: A4.1 = | C28: =C24*(C26^(2)/8)+(2/C7)^(C20)*(C26/2)^(C20+2)*(C13/(C20+2))-((2/C7)^(C14)*(C26/2)^(C14+2)*(C12/(C14+2))) -> 0.100514286
B29: A4.2 = | C29: =-C24*(C26/2)*C6-(2/C7)^rng_t*(C26/2)^(rng_t+1)*(C13*C6)/(rng_t+1)+(2/C7)^C14*(C26/2)^(C14+1)*(C12*C6/(C14+1)) -> -0.1708497491
B30: A4.3 = | C30: =C24*C6^2/2 + (2/C7)^C20*C6^(C20+2)*C13/((C20+1)*(C20+2))-(2/C7)^C14*C6^(C14+2)*C12/((C14+1)*(C14+2)) -> 0.07276513785
B31: Mx.neg = | C31: =C25-C15*C8*(C28+C29+C30) -> 42.55520807 | I31: 0<x<CL/2
B33: M#= | C33: =IF(C6>=0,IF(C6<rng_C*C7/2,C31,C25),NA()) -> 42.55520807 | I33: ULS moment @ x
B35: A5.1 = | C35: =C9*C8*C6^2/2*(C7/2-C6/3)+C11*C8*C6^2/4*(C7^2/4-C7*C6/3+C6^2/6) -> 779.1974117
B36: A5.2 = | C36: =C24/4*(C26/2)^2*C6^2+(2/C7)^rng_t*(C26/2)^(rng_t+2)*C13*C6^2/(2*(rng_t+2))-(2/C7)^C14*(C26/2)^(C14+2)*C12*C6^2/(2*(C14+2)) -> 0.6200553543
B37: A5.3 = | C37: =-C24*(C26/2)*C6^3/6-(2/C7)^rng_t*(C26/2)^(rng_t+1)*C13*C6^3/(6*(rng_t+1))+(2/C7)^C14*(C26/2)^(C14+1)*C12*C6^3/(6*(C14+1)) -> -0.3513142458
B38: A5.4 = | C38: =+C24*C6^4/24+(2/C7)^rng_t*C6^(rng_t+4)*C13/((rng_t+1)*(rng_t+2)*(rng_t+3)*(rng_t+4)) -> 0.0731016924
B39: A5.5 = | C39: =-(2/C7)^C14*C6^(C14+4)*C12/((C14+1)*(C14+2)*(C14+3)*(C14+4)) -> -0.000259579398
B40: EIδ= | C40: =C35-C15*C8*(C36+C37+C38+C39) -> 437.6141902
B42: A6.1 = | C42: =C9*C8*C7^3/24+C11*C8*C7^4/128 -> 1773
B43: A6.2 = | C43: =C24/6*(C26/2)^3*(C7/2) -> 1.036697708
B44: A6.3 = | C44: =(2/C7)^rng_t*(C26/2)^(rng_t+3)*C13/(2*(rng_t+3))*(C7/2)-(2/C7)^C14*(C26/2)^(C14+3)*C12/(2*(C14+3))*(C7/2)-C24/24*(C26/2)^4 -> -0.4074803837
B45: A6.4 = | C45: =-((2/C7)^rng_t)*(C26/2)^(rng_t+4)*C13/(6*(rng_t+4))+(2/C7)^C14*(C26/2)^(C14+4)*C12/(6*(C14+4)) -> 0.05429466442
B46: EIΔ= | C46: =C42-C15*C8*(C43+C44+C45) -> 1089.488011
B48: EIrequired= | C48: =rng_EIDELTA_big/rng_DELTA_big -> 90790.66761 | I48: required stiffness
B50: tnext = | C50: =LOG(C40/C46,(2*C6/C7)) -> 1.703533662 | I50: resolve for t
A51: Centre Heave - Summary
C53: Dist x from centreline m | D53: Moment M# kNm/m | E53: Free soil heave mm | F53: Footing Movement mm | G53: Soil Pressure kPa
C54: =0 -> 0 | D54: 76.48571402 | E54: 0 | F54: 11.11943026 | G54: =rng_k*MAX(0,(F54-E54))/1000 -> 11.11943026
C55: =C54+rng_L/10 -> 1.2 | D55: 72.62681173 | E55: 0.024 | F55: 11.72039137 | G55: =rng_k*MAX(0,(F55-E55))/1000 -> 11.69639137
C56: =C55+rng_L/10 -> 2.4 | D56: 61.05628394 | E56: 0.768 | F56: 13.4631024 | G56: 12.6951024
C57: =C56+rng_L/10 -> 3.6 | D57: 40.8228381 | E57: 5.832 | F57: 16.16244209 | G57: 10.33044209
C58: =C57+rng_L/10 -> 4.8 | D58: 16.68 | E58: 24.576 | F58: 19.50296739 | G58: 0
C59: =C58+rng_L/10 -> 6 | D59: 0 | E59: 75 | F59: 23.13339302 | G59: 0

Sheet Edge Heave
A1: Residential Footing Design - Mitchell Method (1984) | I1: JRB STRUCTURAL ENGINEERING PTY LTD | J1: Notes:
J2: click "Re-Calculate" after making any changed to inputs
A3: Edge Heave - Inputs
B6: x = | C6: 3 | D6: m | I6: distance from centre of footing (0<x<L/2) - Nominal | J6: Designer can input any valid value for x to calculate moment at any given point | Q6: 4.225 | R6: 3
B7: L = | C7: ='Centre Heave'!C7:C15 -> 12 | D7: m | I7: overall length of footing | Q7: 14.05 | R7: 12
B8: B = | C8: 1 | D8: m | E8: =IF(rng_B<>1,"usually take B equals 1m","") ->  | I8: take unit width of footing | Q8: 1 | R8: 1
B9: W = | C9: 10 | D9: kN/m | I9: edge line load applied to footing | Q9: 30 | R9: 10
B10: T = | C10: 0 | D10: kN/m | I10: centre line load applied to footing | Q10: 30 | R10: 0
B11: w = | C11: 6.5 | D11: kPa | I11: uniform load applied to footing | Q11: 3 | R11: 6.5
B12: Y = | C12: 0.075 | D12: m | I12: free soil heave | Q12: 0.02 | R12: 0.075
B13: Δ = | C13: 0.012 | D13: m | I13: design deflection limit | J13: A solution may not be possible when D approaches the value of Y | K13: =(C19)/(C15*(C12*10^-3)) -> 108.8888889 | Q13: 0.007 | R13: 0.012
B14: m = | C14: 5 | I14: exponent (refer AS2870) | Q14: 21 | R14: 5
B15: k = | C15: 1000 | D15: kPa/m | I15: modulus of subgrade reaction | Q15: 2500 | R15: 1000
A17: Edge Heave - Calculations
B19: ω = | C19: =rng_w_small+(2*rng_W_big+rng_Tload)/rng_L -> 8.166666667 | I19: uniform pressure
B20: t = | C20: 1.723177403 | I20: solved numerically at x=L/4
B21: C = | C21: 0.3927960216 | D21: =IF(rng_C<0,"Warning: negative value for C","") ->  | I21: solved numerically at x=L/4
B22: (1-C)= | C22: =1-rng_C -> 0.6072039784
B23: δο= | C23: =C22^rng_m*rng_Y-C22^rng_t*rng_DELTA_big -> 0.001111036011
B24: ω/(kY)1= | C24: =(1-C22^rng_m*(1+rng_m*rng_C))*(1/(rng_m+1))+(C22^rng_t*(1+rng_t*rng_C)-1)*(rng_DELTA_big/rng_Y)*(1/(rng_t+1)) -> 0.1088413947 | I24: δo>0
B25: ω/(kY)2= | C25: =1-(rng_DELTA_big/rng_Y)^((1/(rng_m-rng_t))) -> 0.4283655831 | I25: δo=0
B26: ω/(kY)= | C26: =IF(rng_deltao<>0,C24,C25) -> 0.1088413947 | I26: adopt correct value of ω/(kY) based on actual δo value
B27: fC = | C27: =C26-rng_omega/(rng_k*rng_Y) -> -4.749414966e-05 | I27: equation to solve for "C"
B29: B4.1 = | C29: =rng_W_big*rng_B*(rng_L/2-rng_x)+rng_w_small*rng_B/2*(rng_L/2-rng_x)^2 -> 59.25
B30: B4.2 = | C30: =rng_Y*rng_L^2/(4*(rng_m+2))*(1-C22^(rng_m+2))-rng_DELTA_big*rng_L^2/(4*(rng_t+2))*(1-C22^(rng_t+2)) -> 0.2760546447
B31: B4.3 = | C31: =-rng_deltao*rng_L^2/8*(1-C22^2)-rng_Y*rng_x*rng_L/(2*(rng_m+1))*(1-C22^(rng_m+1)) -> -0.2263483018
B32: B4.4 = | C32: =+rng_DELTA_big*rng_x*rng_L/(2*(rng_t+1))*(1-C22^(rng_t+1))+rng_deltao*rng_L*rng_x*rng_C/2 -> 0.0667872057
B33: Mx.4 = | C33: =C29-rng_k*rng_B*(C30+C31+C32) -> -57.24354867 | I33: 0 < x < (1-C)L/2
B35: B6.1 = | C35: =rng_W_big*rng_B*(rng_L/2-rng_x)+rng_w_small*rng_B/2*(rng_L/2-rng_x)^2 -> 59.25
B36: B6.2 = | C36: =rng_L^2*rng_Y/(4*(rng_m+2))-rng_L^2*rng_DELTA_big/(4*(rng_t+2))-rng_deltao*rng_L^2/8 -> 0.2496857111
B37: B6.3 = | C37: =-rng_L*rng_x*rng_Y/(2*(rng_m+1))+rng_L*rng_x*rng_DELTA_big/(2*(rng_t+1))+rng_deltao*rng_x*rng_L/2 -> -0.1256822447
B38: B6.4 = | C38: =+(2/rng_L)^rng_m*rng_x^(rng_m+2)*rng_Y/((rng_m+1)*(rng_m+2))-(2/rng_L)^rng_t*rng_x^(rng_t+2)*rng_DELTA_big/((rng_t+1)*(rng_t+2))-rng_deltao*rng_x^2/2 -> -0.00772373924
B39: Mx.6 = | C39: =C35-rng_k*rng_B*(C36+C37+C38) -> -57.02972716 | I39: (1-C)L/2 < x < L/2
B41: M#= | C41: =IF(C6>=0,IF(C6<(1-rng_C)*C7/2,C33,C39),NA()) -> -57.24354867 | I41: ULS moment @ x
B43: B5.1 = | C43: =rng_W_big*rng_B*rng_L/4*rng_x^2-rng_W_big*rng_B/6*rng_x^3+rng_w_small*rng_B*rng_L^2/16*rng_x^2-rng_w_small*rng_B*rng_L/12*rng_x^3+rng_w_small*rng_B/24*rng_x^4 -> 597.9375
B44: B5.2 = | C44: =rng_Y*rng_L^2*rng_x^2/(8*(rng_m+2))*(1-C22^(rng_m+2))-rng_DELTA_big*rng_L^2*rng_x^2/(8*(rng_t+2))*(1-C22^(rng_t+2)) -> 1.242245901
B45: B5.3 = | C45: =-rng_deltao*rng_L^2*rng_x^2/16*(1-C22^2)-rng_Y*rng_L*rng_x^3/(12*(rng_m+1))*(1-C22^(rng_m+1)) -> -0.3773980922
B46: B5.4 = | C46: =+rng_DELTA_big*rng_L*rng_x^3/(12*(rng_t+1))*(1-C22^(rng_t+1))+rng_deltao*rng_L*rng_C*rng_x^3/12 -> 0.1001808086
B47: EIδ= | C47: =C43-C15*C8*(C44+C45+C46) -> -367.0911177
B49: B7.1 = | C49: =rng_W_big*rng_B*rng_L^3/24+rng_w_small*rng_B*rng_L^4/128 -> 1773
B50: B7.2 = | C50: =(2*rng_m+9)*rng_Y*rng_L^4/(96*(rng_m+3)*(rng_m+4))-(2*rng_t+9)*rng_DELTA_big*rng_L^4/(96*(rng_t+3)*(rng_t+4))-rng_deltao*rng_L^4/128 -> 2.901558101
B51: B7.3 = | C51: =-1*C22^(rng_m+3)*rng_Y*rng_L^4/(32*(rng_m+3))+C22^(rng_t+3)*rng_DELTA_big*rng_L^4/(32*(rng_t+3))+C22^3*rng_deltao*rng_L^4/96 -> 0.09748399256
B52: B7.4 = | C52: =C22^(rng_m+4)*rng_Y*rng_L^4/(96*(rng_m+4))-C22^(rng_t+4)*rng_DELTA_big*rng_L^4/(96*(rng_t+4))-C22^4*rng_deltao*rng_L^4/384 -> -0.01401935133
B53: EIΔ= | C53: =C49-C15*C8*(C50+C51+C52) -> -1212.022742
B55: EIrequired= | C55: =rng_EIDELTA_big/rng_DELTA_big -> -101001.8952 | I55: required stiffness
B56: tnext = | C56: =LOG(C47/C53,(2*C6/C7)) -> 1.723206657 | I56: resolve for t
A57: Edge Heave - Summary
C59: Dist x from centreline m | D59: Moment M# kNm/m | E59: Free soil heave mm | F59: Footing Movement mm | G59: Soil Pressure kPa
C60: =0 -> 0 | D60: -86.42943156 | E60: 0 | F60: 1.111036011 | G60: =rng_k*MAX(0,-(F60-E60))/1000 -> 0
C61: =C60+rng_L/10 -> 1.2 | D61: -81.7750784 | E61: 0.024 | F61: 1.721655702 | G61: 0
C62: =C61+rng_L/10 -> 2.4 | D62: -67.76072525 | E62: 0.768 | F62: 3.48703504 | G62: 0
C63: =C62+rng_L/10 -> 3.6 | D63: -44.38637209 | E63: 5.832 | F63: 6.207369177 | G63: 0
C64: =C63+rng_L/10 -> 4.8 | D64: -14.03227639 | E64: 24.576 | F64: 9.549406259 | G64: 15.02659374
C65: =C64+rng_L/10 -> 6 | D65: -6.938893904e-15 | E65: 75 | F65: 13.04644744 | G65: 61.95355256
